Cogmind - Beta 12 @@@ ROGUE MODE // 2023.03.26 @ 22:51:33 // Winter2019/RPGLIKE Player: ArabianSandBoa Result: Destroyed by L-41 Fighter with Axe Performance ------------- Evolutions (3) 1500 Regions Visited (12) 2400 Robots Destroyed (313) 1565 Value Destroyed (14343) 14343 Prototype IDs (63) 1260 Alien Tech Used (0) 0 Bonus (10038) 10038 TOTAL SCORE: 31106 Bonus ------- Triggered High Security 500 High Alert Combat Kills 6396 Follower Combat Kills 315 Entered Garrisons 600 Used RIF Installer 2000 Aligned with FarCom 300 Friendly Fire -73 Cogmind --------- Core Integrity 0/800 Matter 248/300 Energy 170/170 System Corruption 0% Temperature Cool (13) Movement Flying (8) Location -7/Garrison Parts ------- > --- POWER (1) -------- Light Neutrino Core > --- PROPULSION (5) --- Xenon Bombardment Thruster Advanced Surge Thruster Advanced Surge Thruster Advanced Surge Thruster Advanced Surge Thruster > --- UTILITY (5) ------ Advanced Power Amplifier Core Analyzer Improved Weapon Cycler Hacking Suite Improved Hacking Suite > --- WEAPON (3) ------- Enhanced Autogun Enhanced Autogun Thunder Hammer > --- INVENTORY (3) ---- Improved Transmission Jammer Advanced ECM Suite Cloak of Protection Peak State ------------ > --- POWER ------------ Light Neutrino Core > --- PROPULSION ------- Advanced Surge Thruster Advanced Surge Thruster Advanced Surge Thruster Advanced Surge Thruster Advanced Surge Thruster > --- UTILITY ---------- Advanced Power Amplifier Advanced Matter Compressor Improved Weapon Cycler Improved Transmission Jammer Experimental Propulsion Shielding > --- WEAPON ----------- Enhanced Autogun Enhanced Autogun Thunder Hammer > --- INVENTORY -------- Improved Kinecellerator Cloak of Protection Heavy Neutron Cannon [Rating: 92] Favorites ----------- Power Light Nuclear Core Engine Light Angular Momentum Engine Power Core Light Nuclear Core Propulsion Surge Thruster Leg Aluminum Leg Wheel Compact Wheel Hover Unit Aerolev Unit Flight Unit Surge Thruster Utility Hacking Suite Device Transmission Jammer Storage Advanced Matter Compressor Processor Targeting Computer Hackware Hacking Suite Protection Experimental Propulsion Shielding Weapon Enhanced Autogun Energy Gun Precision Beam Rifle Energy Cannon Advanced Beam Cannon Ballistic Gun Enhanced Autogun Launcher Grenade Launcher Impact Weapon Thunder Hammer Piercing Weapon Lance Build | -11 -10 -10 -10 -9 -8 -8 -8 -8 -7 -7 -7 -7 ------- Run | Jun Mat Min Exi Min Mat Gar Mat Gar Fac Was Fac Gar Slots Evolved 10 | . 5 . . 1 1 1 1 . 1 . . . Power . | . . . . . . . . . . . . . Propulsion 4 | . 2 . . 1 . 1 . . . . . . Utility 4 | . 2 . . . 1 . . . 1 . . . Weapon 2 | . 1 . . . . . 1 . . . . . Parts Attached 168 | 1 18 5 . 8 42 2 18 11 3 8 47 5 Power 8 | . 1 . . 2 1 . 2 1 . . 1 . Engine 3 | . . . . 1 . . 1 1 . . . . Core 5 | . 1 . . 1 1 . 1 . . . 1 . Reactor . | . . . . . . . . . . . . . Propulsion 30 | . 1 . . 4 15 1 1 . . 1 7 . Treads . | . . . . . . . . . . . . . Leg . | . . . . . . . . . . . . . Wheel 1 | . . . . 1 . . . . . . . . Hover 1 | . . . . . 1 . . . . . . . Flight 28 | . 1 . . 3 14 1 1 . . 1 7 . Utility 65 | 1 6 . . 1 12 1 5 7 2 . 25 5 Device 42 | 1 3 . . 1 11 1 1 6 1 . 13 4 Storage 1 | . . . . . . . . . . . 1 . Processor 10 | . 2 . . . 1 . 1 1 . . 5 . Hackware 10 | . 1 . . . . . 3 . 1 . 4 1 Protection 2 | . . . . . . . . . . . 2 . Artifact . | . . . . . . . . . . . . . Weapon 65 | . 10 5 . 1 14 . 10 3 1 7 14 . Energy Gun 7 | . . . . . 3 . . . . 1 3 . Energy Cannon 4 | . 1 . . . . . . . . 1 2 . Ballistic Gun 25 | . . 2 . 1 11 . 5 2 . 3 1 . Ballistic Cannon . | . . . . . . . . . . . . . Launcher 8 | . 5 2 . . . . 1 . . . . . Special Weapon . | . . . . . . . . . . . . . Impact Weapon 9 | . 4 1 . . . . . . . 1 3 . Slashing Weapon . | . . . . . . . . . . . . . Piercing Weapon 12 | . . . . . . . 4 1 1 1 5 . Special Melee Weapon . | . . . . . . . . . . . . . Unidentified Prototypes 22 | . 1 . . . 6 . 2 . . 3 10 . Parts Lost 1 | . . . . 1 . . . . . . . . Power 1 | . . . . 1 . . . . . . . . Propulsion . | . . . . . . . . . . . . . Utility . | . . . . . . . . . . . . . Weapon . | . . . . . . . . . . . . . Highest Loss Streak 1 | . . . . 1 . . . . . . . . To Critical Strikes . | . . . . . . . . . . . . . Average Slot Usage (%) 91 | . 59 68 77 90 98 100 99 98 99 99 99 100 Engine 1 | . . . . . . . . 2 7 7 4 . Core 6 | . 8 11 11 8 9 8 7 4 . . 2 7 Flight 30 | . 11 11 11 21 36 39 38 38 36 35 34 35 Device 20 | . 13 11 11 13 30 34 14 20 24 28 19 14 Processor 3 | . 6 11 11 7 2 . 1 3 . . 3 7 Hackware 7 | . 2 11 11 10 . . 14 4 6 7 10 14 Ballistic Gun 15 | . 3 5 22 21 18 16 20 18 15 18 14 14 Launcher 1 | . 10 4 . . . . . . . . . . Impact Weapon 1 | . 2 4 . . . . . . . . 2 7 Piercing Weapon 1 | . . . . . . . . 4 6 1 4 . Naked Turns . | . . . . . . . . . . . . . Heaviest Build 31 | 7 10 9 9 19 21 22 25 25 26 26 31 24 Greatest Support 40 | 10 9 9 9 21 32 29 27 25 30 30 36 40 Greatest Overweight (x) 2 | . 1 . . 1 2 1 1 . 1 1 1 . Average Overweight (x) . | . . . . . . . . . . . . . Largest Inventory Capacity 3 | . 2 2 2 2 2 2 2 3 3 3 3 3 Average Capacity 2 | . . 2 2 2 2 2 2 2 3 3 3 3 Most Carried 3 | . 2 2 2 2 2 2 2 3 3 3 3 3 Average Carried 2 | . . 2 1 1 1 1 1 2 3 2 2 3 Final Capacity 3 | . 2 2 2 2 2 2 2 3 3 3 3 3 Final Carried 3 | . 2 2 2 2 2 2 2 3 3 3 3 3 Class Distribution -------------------- 31% | Hacker-Sprinter 30% | Hacker-Mutant 23% | Wizard-Sprinter 7% | Hacker-Scout Dominant Class ---------------- Hacker-Mutant | -10/Materials Hacker-Mutant | -10/Mines Hacker-Mutant | -10/Exiles Hacker-Mutant | -9/Mines Hacker-Sprinter | -8/Materials Hacker-Sprinter | -8/Garrison Wizard-Sprinter | -8/Materials Hacker-Sprinter | -8/Garrison Hacker-Sprinter | -7/Factory Hacker-Sprinter | -7/Waste Wizard-Sprinter | -7/Factory Wizard-Sprinter | -7/Garrison Resources | -11 -10 -10 -10 -9 -8 -8 -8 -8 -7 -7 -7 -7 ----------- Run | Jun Mat Min Exi Min Mat Gar Mat Gar Fac Was Fac Gar Matter Collected 10139 | 243 1102 270 19 124 2580 1326 2339 491 44 810 689 102 Remotely . | . . . . . . . . . . . . . Salvage Created 12541 | 110 944 172 . 90 2278 1409 2729 1156 81 1308 1896 368 Parts 719 | 5 72 9 . 13 162 95 159 74 12 24 84 10 Haulers Intercepted 22 | . 2 . . . 6 . 6 . 1 . 7 . Recyclers Shooed 6 | . 2 . . . 1 . . . . . 3 . Parts Field Recycled . | . . . . . . . . . . . . . Retrieved Matter . | . . . . . . . . . . . . . Parts Self-Destructed . | . . . . . . . . . . . . . Prevented . | . . . . . . . . . . . . . Kills | -11 -10 -10 -10 -9 -8 -8 -8 -8 -7 -7 -7 -7 ------- Run | Jun Mat Min Exi Min Mat Gar Mat Gar Fac Was Fac Gar Combat Hostiles Destroyed 250 | . 27 9 . 4 52 43 62 29 2 5 13 4 Melee 24 | . . . . . . . . 16 2 . 6 . Guns 186 | . . . . 4 51 43 62 13 . 5 4 4 AOE 37 | . 27 6 . . 1 . . . . . 3 . Classes Destroyed 18 | 2 6 1 . . 5 2 . 1 . 1 . . Worker 13 | . 8 . . . 3 . 2 . . . . . Builder 11 | . 6 . . . 5 . . . . . . . Tunneler 3 | 1 1 . . . 1 . . . . . . . Hauler 22 | . 2 . . . 6 . 6 . 1 . 7 . Recycler 16 | 1 3 . . . 1 . 3 . . . 8 . Operator 6 | . 1 . . . . . 2 . 1 . 2 . Watcher 20 | . 3 . . . 4 . 5 1 . . 7 . Swarmer 15 | . . 3 . 2 . 5 3 2 . . . . Cutter 16 | . . . . . 10 . 6 . . . . . Grunt 147 | . 27 6 . 2 31 16 39 14 2 . 7 3 Brawler 9 | . . . . . 4 2 2 1 . . . . Duelist 6 | . . . . . . 3 2 . . . . 1 Protector 2 | . . . . . 1 . 1 . . . . . Sentry 34 | . . . . . 5 11 8 7 . . 3 . Specialist 2 | . . . . . . . . 2 . . . . Hunter 6 | . . . . . 1 1 1 1 . . 2 . Programmer 8 | . . . . . . 5 . 2 . . 1 . Compactor 5 | . . . . . . . . . . 5 . . Best Kill Streak 19 | 1 19 3 . 2 8 10 12 7 2 3 11 4 Combat Bots Only 13 | . 13 3 . 2 7 10 11 7 2 3 3 4 Max Kills in Single Turn 3 | 1 3 2 . 2 2 2 2 2 1 1 2 1 Gunslinging 1 | . . . . . 1 1 1 1 . . . . Exploded 2 | . 2 2 . . 1 . . . . . 2 . Melee 1 | . . . . . . . . 1 1 . 1 . Uniques/NPCs Destroyed . | . . . . . . . . . . . . . Combat | -11 -10 -10 -10 -9 -8 -8 -8 -8 -7 -7 -7 -7 -------- Run | Jun Mat Min Exi Min Mat Gar Mat Gar Fac Was Fac Gar Damage Taken 8296 | . 488 174 . 71 2221 1269 1823 578 92 . 1454 126 Core 6622 | . 393 154 . 58 1788 1015 1472 452 74 . 1116 100 Absorbed by Shields 11 | . . . . . . . . . . . . 11 Redirected to Core 5451 | . 298 71 . 41 1521 884 1223 436 57 . 838 82 Redirected to Shielding 83 | . . . . . . . . . . . 83 . Core Remaining (%) 100 | 100 . . . 100 . . . 100 . . . . Volleys Fired 886 | 11 109 12 . 16 257 155 203 30 2 61 17 13 Largest 3 | 1 1 1 . 2 2 2 3 3 3 3 2 2 Hottest 110 | 20 30 30 . 43 50 50 75 75 75 75 110 50 Shots Fired 1826 | 11 109 12 . 23 510 308 521 86 6 181 33 26 Gun 1710 | 11 7 . . 23 510 308 521 86 6 181 31 26 Cannon 2 | . . . . . . . . . . . 2 . Launcher 114 | . 102 12 . . . . . . . . . . Special . | . . . . . . . . . . . . . Kinetic 1710 | 11 7 . . 23 510 308 521 86 6 181 31 26 Thermal 2 | . . . . . . . . . . . 2 . Explosive 114 | . 102 12 . . . . . . . . . . Electromagnetic . | . . . . . . . . . . . . . Robot Hit Streak 52 | 5 6 6 . 3 29 52 44 34 5 38 16 39 Robot Miss Streak 3 | 2 2 1 . 2 3 1 2 1 . 1 1 . Penetration Max . | . . . . . . . . . . . . . Secondary Targets 38 | . . . . . 10 7 17 2 . 2 . . Max Gunslinging Chain 2 | . . . . . 1 1 1 2 . 1 . . Shots Hit Robots 1278 | 7 28 6 . 6 291 210 366 77 8 170 83 26 Core Hits 543 | 3 83 7 . 5 128 74 138 33 5 22 34 11 Critical Kills 4 | . . . . . 2 . . 2 . . . . Critical Parts Destroyed 14 | . 3 . . . 3 2 4 . . . 2 . Critical Strikes 30 | . 3 . . . 5 2 4 8 . 1 7 . Destroy 14 | . . . . . 5 2 4 2 . 1 . . Smash 5 | . 3 . . . . . . . . . 2 . Impale 11 | . . . . . . . . 6 . . 5 . Melee Attacks 215 | . 16 6 . . . . 7 45 13 . 120 8 Impact 63 | . 16 6 . . . . . . . . 33 8 Slashing . | . . . . . . . . . . . . . Piercing 152 | . . . . . . . 7 45 13 . 87 . Sneak Attacks 38 | . 7 . . . . . 1 4 2 . 24 . Combat Hostiles 8 | . . . . . . . . 4 1 . 3 . Follow-up Attacks . | . . . . . . . . . . . . . Damage Inflicted 35754 | 92 3346 559 . 106 5811 4550 7519 3168 423 3781 5513 886 Guns 23728 | 92 65 . . 106 5766 4550 7413 881 96 3781 502 476 Cannons . | . . . . . . . . . . . . . Explosions 3555 | . 2627 400 . . 45 . . . . . 483 . Melee 8471 | . 654 159 . . . . 106 2287 327 . 4528 410 Ramming . | . . . . . . . . . . . . . Kinetic 23728 | 92 65 . . 106 5766 4550 7413 881 96 3781 502 476 Thermal 488 | . . 74 . . 45 . . . . . 369 . Explosive 2999 | . 2559 326 . . . . . . . . 114 . Electromagnetic 68 | . 68 . . . . . . . . . . . Impact 1669 | . 654 159 . . . . . . . . 446 410 Slashing . | . . . . . . . . . . . . . Piercing 6802 | . . . . . . . 106 2287 327 . 4082 . Highest Corruption 10 | . . . . . 5 8 9 9 6 6 10 . Average Corruption 7 | . . . . . 5 7 8 9 4 6 7 . Corruption Purged 10 | . . . . . . . . . . . 10 . Corruption Blocked . | . . . . . . . . . . . . . Effects 200 | . . . . . 34 37 52 22 1 10 44 . Message Errors 52 | . . . . . 8 10 13 6 . 4 11 . Matter Fused 47 | . . . . . 10 10 9 5 1 3 9 . Heat Flow Errors 21 | . . . . . 5 5 6 . . . 5 . Energy Discharges 18 | . . . . . 1 2 7 5 . . 3 . Parts Rejected 2 | . . . . . . . 1 . . . 1 . Data Loss (minor) 18 | . . . . . 2 1 5 4 . 1 5 . Data Loss (major) 8 | . . . . . 1 3 . . . . 4 . Misfires 3 | . . . . . 1 1 . . . . 1 . Alerts 10 | . . . . . 1 2 2 1 . . 4 . Misdirections 1 | . . . . . . . . . . . 1 . Weapon Failures 20 | . . . . . 5 3 9 1 . 2 . . Overload Shots . | . . . . . . . . . . . . . Overflow Damage 2442 | . 383 72 . . . . . 414 . . 1414 159 Projectiles . | . . . . . . . . . . . . . Explosions 80 | . 22 31 . . . . . . . . 27 . Melee 2362 | . 361 41 . . . . . 414 . . 1387 159 Knockbacks 6 | . 1 2 . . . . . . . . . 3 Impact 5 | . 1 2 . . . . . . . . . 2 Kinetic . | . . . . . . . . . . . . . Secondary 1 | . . . . . . . . . . . . 1 Self-Inflicted Damage 492 | . 257 99 . . 61 . . 75 . . . . Shots 14 | . 9 3 . . 1 . . 1 . . . . Rammed . | . . . . . . . . . . . . . Targets Rammed . | . . . . . . . . . . . . . Kicked . | . . . . . . . . . . . . . Crushed . | . . . . . . . . . . . . . Highest Temperature 349 | . 21 25 . 10 349 201 202 11 21 258 260 107 Average Temperature 64 | . 9 18 . 3 81 90 36 5 13 101 52 38 Received Heat Transfer 2802 | . 144 57 . 12 756 477 882 153 27 . 255 39 Effects 2 | . . . . . . . 2 . . . . . Interference 2 | . . . . . . . 2 . . . . . Siege Activations . | . . . . . . . . . . . . . Robots Corrupted . | . . . . . . . . . . . . . Combat Hostiles . | . . . . . . . . . . . . . Parts Fried 7 | . 4 1 . . . . . . . . 1 1 Impact Corruptions 17 | . 6 3 . . . . . . . . 5 3 Robots Melted . | . . . . . . . . . . . . . Combat Hostiles . | . . . . . . . . . . . . . Parts Melted . | . . . . . . . . . . . . . Heat Transferred 350 | . . 100 . . 50 . . . . . 200 . Parts Sabotaged . | . . . . . . . . . . . . . Parts Stolen . | . . . . . . . . . . . . . Parts Stripped . | . . . . . . . . . . . . . Power Chain Reactions . | . . . . . . . . . . . . . Missiles Intercepted . | . . . . . . . . . . . . . Alert | -11 -10 -10 -10 -9 -8 -8 -8 -8 -7 -7 -7 -7 ------- Run | Jun Mat Min Exi Min Mat Gar Mat Gar Fac Was Fac Gar Peak Influence 2478 | 10 1559 971 . 160 974 2188 1881 2478 1861 1100 1963 1724 Initial 1374 | . 6 564 . . 29 633 1066 1222 1300 1100 756 1374 Average 1141 | 3 1081 807 . 47 464 1643 1302 1907 1620 1082 1351 1631 Maximum Alert Level 5 | . 4 3 . . 3 5 5 5 5 4 5 5 Low Security (%) 12 | 100 10 . . 100 28 . . . . . . . Level 1 3 | . 1 . . . 20 . . . . . . . Level 2 6 | . 3 31 . . 22 . . . . . 4 . Level 3 21 | . 24 68 . . 29 10 20 . . 87 18 . Level 4 34 | . 58 . . . . 28 67 21 40 12 55 19 Level 5 22 | . . . . . . 59 11 78 46 . 22 80 High Security . | . . . . . . . . . 13 . . . Max Security . | . . . . . . . . . . . . . Sterilizations 2 | . . . . . 1 . 1 . . . . . Squads Dispatched 82 | . 10 . . 1 16 . 15 . 9 . 31 . Investigation 53 | . 10 . . 1 9 . 11 . 3 . 19 . Extermination 1 | . . . . . . . . . . . 1 . Reinforcement 12 | . . . . . 5 . 2 . 1 . 4 . Assault 12 | . . . . . 2 . 2 . 5 . 3 . Garrison 4 | . . . . . . . . . . . 4 . Intercept . | . . . . . . . . . . . . . Searches Triggered . | . . . . . . . . . . . . . Construction Impeded . | . . . . . . . . . . . . . Haulers Reinforced 1 | . . . . . . . . . 1 . . . Active Scanning Responses . | . . . . . . . . . . . . . Cargo Convoy Interrupts 1 | . . . . . . . . . . . 1 . Stealth | -11 -10 -10 -10 -9 -8 -8 -8 -8 -7 -7 -7 -7 --------- Run | Jun Mat Min Exi Min Mat Gar Mat Gar Fac Was Fac Gar Distress Signals 7 | . 2 . . . . . 2 2 . . 1 . Communications Jammed 147 | . . . . . 7 . 18 30 7 . 85 . Distress Signals 138 | . . . . . 4 . 14 30 7 . 83 . Times Spotted 349 | . 37 7 . 9 71 42 74 23 11 6 60 9 Peak Tracking Total 13 | . 5 3 . 3 6 8 6 3 7 4 13 5 Tactical Retreats 30 | . 2 . . . 5 . 3 1 2 . 15 2 Traps | -11 -10 -10 -10 -9 -8 -8 -8 -8 -7 -7 -7 -7 ------- Run | Jun Mat Min Exi Min Mat Gar Mat Gar Fac Was Fac Gar Traps Triggered 14 | . 2 . . . 1 1 1 3 1 . 1 4 Indirectly 1 | . 1 . . . . . . . . . . . Trap Hack Attempts . | . . . . . . . . . . . . . Triggered . | . . . . . . . . . . . . . Disarmed . | . . . . . . . . . . . . . Reprogrammed 20 | . . . . . . . 10 . 4 . 6 . Reused 7 | . . . . . . . 2 . . . 5 . Traps Extracted . | . . . . . . . . . . . . . Installed . | . . . . . . . . . . . . . Triggered 7 | . . . . . . . 2 . . . 5 . Machines | -11 -10 -10 -10 -9 -8 -8 -8 -8 -7 -7 -7 -7 ---------- Run | Jun Mat Min Exi Min Mat Gar Mat Gar Fac Was Fac Gar Machines Disabled 148 | . 33 5 . 2 20 13 25 10 9 . 26 5 Max in Single Turn 3 | . 3 1 . 1 3 2 2 2 1 . 3 1 Garrison Access 2 | . . . . . . . . . 1 . 1 . Garrison Relay 14 | . . . . . . 6 . 6 . . . 2 Phase Generator 1 | . . . . . . . . 1 . . . . Machines Repaired . | . . . . . . . . . . . . . Machines Sabotaged . | . . . . . . . . . . . . . Overloaded Fab Kills 3 | . . . . . . . . . 3 . . . Hacking | -11 -10 -10 -10 -9 -8 -8 -8 -8 -7 -7 -7 -7 --------- Run | Jun Mat Min Exi Min Mat Gar Mat Gar Fac Was Fac Gar Machines Accessed 82 | . 10 . 1 1 11 4 14 2 5 . 34 . Terminals 53 | . 8 . . 1 8 4 11 2 2 . 17 . Fabricators 8 | . . . . . . . . . 2 . 6 . Repair Stations . | . . . . . . . . . . . . . Recycling Units 11 | . 2 . . . 1 . 1 . 1 . 6 . Scanalyzers 5 | . . . . . 1 . 1 . . . 3 . Garrison Access 4 | . . . . . 1 . 1 . . . 2 . Total Hacks 549 | . 58 . 1 5 87 19 115 10 33 . 221 . Successful 336 | . 42 . 1 4 55 8 75 6 24 . 121 . Failed 212 | . 16 . . 1 32 11 40 4 9 . 99 . Catastrophic 33 | . . . . . 4 1 6 . 1 . 21 . Database Lockouts 1 | . . . . . . . . . . . 1 . Manual 243 | . 33 . 1 4 45 9 44 7 13 . 87 . Terminals 419 | . 52 . . 5 72 19 104 10 21 . 136 . Fabricators 28 | . . . . . . . . . 6 . 22 . Repair Stations . | . . . . . . . . . . . . . Recycling Units 57 | . 6 . . . 7 . 5 . 6 . 33 . Scanalyzers 24 | . . . . . 7 . 1 . . . 16 . Garrison Access 20 | . . . . . 1 . 5 . . . 14 . Terminal Hacks 190 | . 25 . 1 3 32 5 55 4 13 . 52 . Record 23 | . 2 . . . 4 . 13 . 2 . 2 . Part Schematic 5 | . . . . . 1 . 1 . . . 3 . Robot Schematic 4 | . . . . . . . . . . . 4 . Robot Analysis 32 | . 8 . . 2 8 . 3 . 1 . 10 . Prototype ID Bank 13 | . 4 . . . 1 . 5 . . . 3 . Open Door 1 | . . . . . . 1 . . . . . . Level Access Points 3 | . . . . . 1 . 1 . . . 1 . Branch Access Points 6 | . 1 . . . 2 . 1 . 1 . 1 . Emergency Access Points 12 | . 2 . . . 1 1 2 . 2 . 4 . Machine Index 1 | . . . . . . . . . . . 1 . Terminal Index 3 | . 1 . . . . . 1 . . . 1 . Repair Station Index 1 | . . . . . . . 1 . . . . . Garrison Index 2 | . . . . . . . . . 1 . 1 . Alert Level 4 | . . . . . 1 . 3 . . . . . Unreport Threat 18 | . . . . . 5 . 7 . . . 6 . Locate Traps 8 | . 3 . . . . . 2 . 1 . 2 . Disarm Traps 1 | . . . . . . . . 1 . . . . Reprogram Traps 10 | . 1 . . . 1 . 6 . 1 . 1 . Dispatch Records 1 | . . . . . . . 1 . . . . . Patrol Status 1 | . . . . . . . . . . . 1 . Transport Status 2 | . . . . . . . 1 . 1 . . . Investigation Status 2 | . . . . . . . 2 . . . . . Recall Investigation 2 | . . . . . 1 . 1 . . . . . Hauler Manifests 7 | . . . . . 3 . 1 . 1 . 2 . Registered Components 4 | . 1 . . . . . 1 . 1 . 1 . Registered Prototypes 2 | . 1 . . . . . . . . . 1 . Zone Layout 15 | . 1 . . 1 3 . 2 . 1 . 7 . Garrison Registry 3 | . . . . . . 1 . 2 . . . . Patrol Navigation 2 | . . . . . . 2 . . . . . . Security Stations 1 | . . . . . . . . 1 . . . . EX-Prototype ID Bank 1 | . . . 1 . . . . . . . . . Fabricator Hacks 9 | . . . . . . . . . 1 . 8 . Network Status 1 | . . . . . . . . . 1 . . . Load Schematic 3 | . . . . . . . . . . . 3 . Build 5 | . . . . . . . . . . . 5 . Repair Station Hacks . | . . . . . . . . . . . . . Recycling Unit Hacks 16 | . 3 . . . 1 . 1 . 1 . 10 . Report Inventory 11 | . 2 . . . 1 . 1 . 1 . 6 . Retrieve Matter 1 | . . . . . . . . . . . 1 . Retrieve Components 4 | . 1 . . . . . . . . . 3 . Scanalyzer 18 | . . . . . 6 . . . . . 12 . Insert Component 7 | . . . . . 2 . . . . . 5 . Analyze 11 | . . . . . 4 . . . . . 7 . Garrison Access Hacks 4 | . . . . . 1 . 1 . . . 2 . Unlock Access 3 | . . . . . 1 . 1 . . . 1 . Coupler Status 1 | . . . . . . . . . . . 1 . Unauthorized Hacks 99 | . 14 . . 1 15 3 18 2 9 . 37 . Terminals 45 | . 12 . . 1 11 3 9 2 1 . 6 . Track 1 | . 1 . . . . . . . . . . . Assimilate 3 | . 2 . . . . . . . . . 1 . Botnet 24 | . 6 . . 1 6 2 3 1 1 . 4 . Detonate 1 | . . . . . . . . . . . 1 . Disrupt 1 | . 1 . . . . . . . . . . . Operators 1 | . 1 . . . . . . . . . . . Sabotage 3 | . . . . . . . 3 . . . . . Search 10 | . 1 . . . 5 . 3 1 . . . . Override 1 | . . . . . . 1 . . . . . . Fabricators 9 | . . . . . . . . . 4 . 5 . Report 1 | . . . . . . . . . 1 . . . Fabnet 7 | . . . . . . . . . 2 . 5 . Overload 1 | . . . . . . . . . 1 . . . Repair Stations . | . . . . . . . . . . . . . Recycling Units 31 | . 2 . . . 3 . 4 . 4 . 18 . Monitor 7 | . . . . . . . 1 . 1 . 5 . Reject 8 | . . . . . 1 . 1 . 1 . 5 . Mask 8 | . . . . . 1 . 1 . 1 . 5 . Tunnel 8 | . 2 . . . 1 . 1 . 1 . 3 . Scanalyzers 3 | . . . . . 1 . 1 . . . 1 . Extract 3 | . . . . . 1 . 1 . . . 1 . Garrison Access 11 | . . . . . . . 4 . . . 7 . Restock 2 | . . . . . . . 1 . . . 1 . Reprogram 3 | . . . . . . . 1 . . . 2 . Intercept 3 | . . . . . . . 1 . . . 2 . Watchers 2 | . . . . . . . 1 . . . 1 . Eject 1 | . . . . . . . . . . . 1 . Data Cores Recovered 5 | . . . . . . . 2 . 1 . 2 . Used 4 | . . . . . . . 2 . 1 . 1 . Hacking Detections 67 | . 9 . . 1 9 3 10 2 5 . 28 . Full Trace Events 30 | . 7 . . 1 3 2 4 . 1 . 12 . Feedback Events 2 | . . . . . . . 1 . . . 1 . Corruption 2 | . . . . . . . 1 . . . 1 . Feedback Blocked . | . . . . . . . . . . . . . Robot Schematics Acquired 4 | . . . . . . . . . . . 4 . Robots Built . | . . . . . . . . . . . . . Authchips . | . . . . . . . . . . . . . Time . | . . . . . . . . . . . . . Total Robot Build Rating . | . . . . . . . . . . . . . Part Schematics Acquired 21 | . . . . . 5 . 5 . . . 11 . Parts Built 7 | . . . . . . . . . . . 7 . Authchips . | . . . . . . . . . . . . . Time 315 | . . . . . . . . . . . 315 . Total Part Build Rating 47 | . . . . . . . . . . . 47 . Parts Repaired . | . . . . . . . . . . . . . Time . | . . . . . . . . . . . . . Parts Recycled . | . . . . . . . . . . . . . Recycled Matter . | . . . . . . . . . . . . . Retrieved Matter . | . . . . . . . . . . . . . Retrieved Components 19 | . 7 . . . . . . . . . 12 . Parts Scanalyzed 7 | . . . . . 2 . . . . . 5 . Part Schematics Acquired 7 | . . . . . 2 . . . . . 5 . Parts Damaged 2 | . . . . . . . . . . . 2 . Bothacking | -11 -10 -10 -10 -9 -8 -8 -8 -8 -7 -7 -7 -7 ------------ Run | Jun Mat Min Exi Min Mat Gar Mat Gar Fac Was Fac Gar Used RIF Installer 4 | . . . . . . 2 . 1 . . . 1 Coupler Efficiency 1 | . . . . . . . . 1 . . . . Patrol Navigation 1 | . . . . . . . . . . . . 1 Structural Interface 1 | . . . . . . 1 . . . . . . Robots Hacked . | . . . . . . . . . . . . . Non-combat . | . . . . . . . . . . . . . Combat . | . . . . . . . . . . . . . Robot Hacks Applied . | . . . . . . . . . . . . . Relay Couplers Released 26 | . . . . . . 11 . 9 1 . 2 3 Ejected 1 | . . . . . . . . . . . 1 . Machine Destruction 24 | . . . . . . 11 . 9 1 . . 3 Programmers 1 | . . . . . . . . . . . 1 . Attached 1 | . . . . . . . . . . . . 1 Fabnet Peak Effective % . | . . . . . . . . . . . . . Robots Rewired 2 | . . . . . . 2 . . . . . . Allies Hacked 1 | . . . . . . . . . . . 1 . Hacks Repelled . | . . . . . . . . . . . . . Allies | -11 -10 -10 -10 -9 -8 -8 -8 -8 -7 -7 -7 -7 -------- Run | Jun Mat Min Exi Min Mat Gar Mat Gar Fac Was Fac Gar Total Allies 34 | . 1 1 . 3 . 2 . 2 . 20 5 . Largest Group 19 | . 1 1 1 3 1 2 . 2 . 19 19 . Highest-Rated Group 475 | . 10 31 31 40 16 50 . 40 . 475 475 . Highest-Rated Ally 35 | . 10 31 31 16 16 25 . 20 . 35 35 . Total Orders 3 | . 3 . . . . . . . . . . . STAY 1 | . 1 . . . . . . . . . . . FOLLOW 2 | . 2 . . . . . . . . . . . Ally Attacks 213 | . . . . 28 3 2 . 6 . 14 160 . Total Damage 3645 | . . . . 294 18 34 . 195 . 235 2869 . Kills 38 | . . . . 5 . 1 . 1 . 1 30 . Allies Corrupted 3 | . . . . . . . . . . . 3 . Allies Melted . | . . . . . . . . . . . . . Intel | -11 -10 -10 -10 -9 -8 -8 -8 -8 -7 -7 -7 -7 ------- Run | Jun Mat Min Exi Min Mat Gar Mat Gar Fac Was Fac Gar Robot Analysis Total 32 | . 8 . . 2 8 . 3 . 1 . 10 . Derelict Logs Recovered 3 | . . 1 . 2 . . . . . . . . Drone Launches . | . . . . . . . . . . . . . Drone Recoveries . | . . . . . . . . . . . . . Exploration | -11 -10 -10 -10 -9 -8 -8 -8 -8 -7 -7 -7 -7 ------------- Run | Jun Mat Min Exi Min Mat Gar Mat Gar Fac Was Fac Gar Turns Passed 9327 | 69 1234 480 158 551 1307 1150 1424 540 159 330 1497 428 Spaces Moved 12125 | 36 1658 788 392 594 932 957 1372 762 287 429 3531 387 Core 707 | 10 154 . . . 2 405 74 . . 62 . . Treads . | . . . . . . . . . . . . . Legs 26 | 26 . . . . . . . . . . . . Wheels 303 | . . . . 303 . . . . . . . . Hover . | . . . . . . . . . . . . . Flight 11089 | . 1504 788 392 291 930 552 1298 762 287 367 3531 387 Fastest Speed 5 | 50 40 40 40 31 14 23 17 23 5 5 5 6 Average Speed 31 | 100 43 40 40 67 29 56 26 23 27 31 17 15 Slowest Speed 150 | 120 120 40 40 120 150 100 100 23 63 100 63 16 Overloaded Moves 1054 | . . . . . 23 . 238 . 8 238 537 10 Propulsion Burnouts . | . . . . . . . . . . . . . Robots Hopped 32 | . 1 5 . 1 5 1 7 . . . 12 . Cave-ins Triggered . | . . . . . . . . . . . . . Exploration Rate (%) 72 | 3 99 99 71 99 74 92 82 95 9 95 79 50 Regions Visited 12 Branch Regions 3 Pre-discovered Areas 10 | . 2 . . 2 1 . 1 . 1 . 3 . Known Exits Taken 4 | . 1 . . . 1 . 1 . . . 1 . Unknown Exits Taken 4 | 1 . 1 1 1 . . . . . . . . Scrap Searched 5 | . . 3 . 2 . . . . . . . . Spaces Dug 80 | . 40 . . . . . 1 3 . . 36 . Terrain Destroyed 764 | . 447 96 . . 46 . 32 75 . . 68 . Melee 39 | . . . . . . . 1 3 . . 35 . Projectile 3 | . . . . . . . 1 . . . 2 . AOE 722 | . 447 96 . . 46 . 30 72 . . 31 . Terrain Rammed . | . . . . . . . . . . . . . Walls Destroyed . | . . . . . . . . . . . . . Machines Disabled . | . . . . . . . . . . . . . Actions | -11 -10 -10 -10 -9 -8 -8 -8 -8 -7 -7 -7 -7 --------- Run | Jun Mat Min Exi Min Mat Gar Mat Gar Fac Was Fac Gar Total 16227 | 57 2029 921 393 721 1649 1379 2193 1022 343 578 4213 729 Wait 2230 | 8 208 104 . 81 288 147 489 106 30 59 422 288 Move 12053 | 35 1655 777 391 591 922 954 1357 761 287 428 3508 387 Hop 30 | . 1 5 . 1 5 1 7 . . . 10 . Pick Up 35 | . 2 . 1 2 8 2 . 2 . 3 15 . Fast Attach 108 | 1 11 3 . 7 25 . 10 5 2 6 36 2 Attach 13 | . 1 . . 1 1 1 1 1 . 1 6 . Detach 18 | . 2 . . 1 2 . 2 4 . . 7 . Swap 47 | . 6 2 . . 16 1 7 5 1 1 5 3 Drop 119 | 2 7 2 1 4 33 2 7 6 1 9 43 2 Fire 886 | 11 109 12 . 16 257 155 203 30 2 61 17 13 Melee 215 | . 16 6 . . . . 7 45 13 . 120 8 Ram . | . . . . . . . . . . . . . Kick . | . . . . . . . . . . . . . Crush . | . . . . . . . . . . . . . Escape Stasis 59 | . . . . . . 15 . 18 . . . 26 Rewire 17 | . . . . . . 17 . . . . . . Trap . | . . . . . . . . . . . . . Miscellaneous 397 | . 11 10 . 17 92 84 103 39 7 10 24 . Route ------- -11/Junkyard -10/Materials (discovered 5 exits: [*Mat x3] / *Min x2) -10/Mines (discovered 3 exits: [*Mat x2] / *Exi) -10/Exiles -9/Mines (discovered 2 exits: *Mat x2) -8/Materials (discovered 4 exits: *Fac x3 / Gar) -8/Garrison (discovered 3 exits: *Mat x3) -8/Materials (discovered 4 exits: *Fac x3 / Gar) -8/Garrison (discovered 3 exits: *Fac x3) -7/Factory (discovered 3 exits: Sto / Low x2) -7/Waste -7/Factory (discovered 8 exits: *Fac x4 / *Sto / *Low x2 / Gar) -7/Garrison (discovered 1 exit: *Fac) History --------- Turn | Location | Event 15 | -11/Junkyard | Discovered new exit (range 3) 70 | -11/Junkyard | Entered Materials 75 | -10/Materials | Upgraded with Weapon slot (x1) 76 | -10/Materials | Upgraded with Utility slot (x1) 159 | -10/Materials | Discovered new exit (range 9) 179 | -10/Materials | Discovered new exit (range 12) 239 | -10/Materials | Reached level 2 241 | -10/Materials | Upgraded with Propulsion slot (x1) 293 | -10/Materials | Destroyed 13 combat bots 374 | -10/Materials | Reached level 3 409 | -10/Materials | Discovered new exit (range 16) 447 | -10/Materials | Build established: Hacker-Mutant 522 | -10/Materials | Identified exit to Mines 586 | -10/Materials | Reached level 4 610 | -10/Materials | Upgraded with Propulsion slot (x1) 610 | -10/Materials | Upgraded with Utility slot (x1) 713 | -10/Materials | Discovered new exit (range 9) 1042 | -10/Materials | Reached level 5 1304 | -10/Materials | Entered Mines 1311 | -10/Mines | Received a Rocket Launcher from a helpful Derelict 1408 | -10/Mines | Received a Mining Laser from a helpful Derelict 1458 | -10/Mines | Core integrity fell below 50% 1536 | -10/Mines | Discovered new exit (range 9) 1544 | -10/Mines | Reached level 6 1580 | -10/Mines | Discovered new exit (range 9) 1600 | -10/Mines | Deemed a non-threat by the Exiles lab entrance 1600 | -10/Mines | Discovered new exit (range 5) 1784 | -10/Mines | Entered Exiles 1784 | -10/Exiles | Accompanied by 1 ally 1794 | -10/Exiles | Met 8R-AWN 1801 | -10/Exiles | Met EX-HEX 1814 | -10/Exiles | Met EX-BIN 1818 | -10/Exiles | Aligned with FarCom system 1819 | -10/Exiles | Given EX-Vault access code 1828 | -10/Exiles | Opened EX-Vault 1831 | -10/Exiles | Found Cloak of Protection 1840 | -10/Exiles | Warned to stay clear of 0b10 Research branches 1868 | -10/Exiles | Met EX-DEC 1938 | -10/Exiles | Discovered new exit (range 12) 1942 | -10/Exiles | Left Exiles lab with Cloak of Protection 1942 | -10/Exiles | Entered Mines 1992 | -9/Mines | Found a damaged Exp. Sensor Array with a note attached 1994 | -9/Mines | Found Prototype Device 2041 | -9/Mines | Learned location of Storage (-7) 2041 | -9/Mines | Discovered new exit (range 7) 2109 | -9/Mines | Learned 2 Materials zone layouts 2193 | -9/Mines | Assisted by bots powering up and referring to "LRC-V3" 2305 | -9/Mines | Upgraded with Propulsion slot (x1) 2305 | -9/Mines | Discovered new exit (range 11) 2311 | -9/Mines | Reached level 7 2493 | -9/Mines | Entered Materials 2493 | -8/Materials | Accompanied by 1 ally 2494 | -8/Materials | Identified exit to Factory 2495 | -8/Materials | Reached level 8 2583 | -8/Materials | Build established: Hacker-Scout 2655 | -8/Materials | Reached level 9 2845 | -8/Materials | Upgraded with Utility slot (x1) 2982 | -8/Materials | Reached level 10 3156 | -8/Materials | Reached level 11 3200 | -8/Materials | Destroyed 7 combat bots 3292 | -8/Materials | Build established: Hacker-Sprinter 3293 | -8/Materials | First assault squad dispatched 3441 | -8/Materials | Reached level 12 3649 | -8/Materials | Destroyed 7 combat bots 3782 | -8/Materials | Sterilization system engaged 3782 | -8/Materials | Non-combat units ordered to evacuate 3800 | -8/Materials | Identified exit to Garrison 3800 | -8/Materials | Entered Garrison 3802 | -8/Garrison | Reached level 13 3811 | -8/Garrison | Identified exit to Materials 3870 | -8/Garrison | Triggered checkpoint 3875 | -8/Garrison | Destroyed 7 combat bots 3926 | -8/Garrison | Triggered checkpoint 3933 | -8/Garrison | Garrison Relay disabled 3937 | -8/Garrison | Discovered exit to Materials (range 57) 3937 | -8/Garrison | Discovered exit to Materials (range 73) 3937 | -8/Garrison | Discovered exit to Materials (range 50) 4132 | -8/Garrison | Destroyed 10 combat bots 4155 | -8/Garrison | Garrison Relay disabled 4195 | -8/Garrison | Reached level 14 4227 | -8/Garrison | Upgraded with Propulsion slot (x1) 4265 | -8/Garrison | Garrison Relay disabled 4411 | -8/Garrison | Garrison Relay disabled 4584 | -8/Garrison | Installed Relay Interface Framework 4697 | -8/Garrison | Expanded RIF knowledge: Structural Interface 4710 | -8/Garrison | Garrison Relay disabled 4742 | -8/Garrison | Build established: Hacker-Mutant 4834 | -8/Garrison | Triggered checkpoint 4861 | -8/Garrison | Garrison Relay disabled 4886 | -8/Garrison | Triggered checkpoint 4950 | -8/Garrison | Entered Materials 5072 | -8/Materials | Discovered exit to Factory (range 9) 5350 | -8/Materials | First assault squad dispatched 5354 | -8/Materials | Reached level 15 5356 | -8/Materials | Upgraded with Weapon slot (x1) 5391 | -8/Materials | Build established: Hacker-Sprinter 5432 | -8/Materials | Core integrity fell below 50% 5473 | -8/Materials | Destroyed 11 combat bots 5898 | -8/Materials | Build established: Wizard-Sprinter 6181 | -8/Materials | Sterilization system engaged 6181 | -8/Materials | Non-combat units ordered to evacuate 6199 | -8/Materials | Identified exit to Garrison 6281 | -8/Materials | Combat units ordered to evacuate 6326 | -8/Materials | Destroyed 8 combat bots 6374 | -8/Materials | Entered Garrison 6378 | -8/Garrison | Discovered exit to Factory (range 55) 6378 | -8/Garrison | Discovered exit to Factory (range 62) 6378 | -8/Garrison | Discovered exit to Factory (range 70) 6380 | -8/Garrison | Discovered exit to Factory (range 55) 6380 | -8/Garrison | Discovered exit to Factory (range 62) 6380 | -8/Garrison | Discovered exit to Factory (range 70) 6393 | -8/Garrison | Phase Generator disabled 6398 | -8/Garrison | Triggered checkpoint 6425 | -8/Garrison | Garrison Relay disabled 6438 | -8/Garrison | Triggered checkpoint 6478 | -8/Garrison | Triggered checkpoint 6480 | -8/Garrison | Expanded RIF knowledge: Coupler Efficiency 6482 | -8/Garrison | Garrison Relay disabled 6482 | -8/Garrison | Reached level 16 6530 | -8/Garrison | Destroyed 7 combat bots 6580 | -8/Garrison | Triggered checkpoint 6606 | -8/Garrison | Learned Factory security intel 6612 | -8/Garrison | Triggered checkpoint 6623 | -8/Garrison | Garrison Relay disabled 6629 | -8/Garrison | Rescued a captive Derelict 6629 | -8/Garrison | Rescued a captive Derelict 6685 | -8/Garrison | Garrison Relay disabled 6688 | -8/Garrison | Garrison Relay disabled 6784 | -8/Garrison | Garrison Relay disabled 6864 | -8/Garrison | Build established: Hacker-Sprinter 6871 | -8/Garrison | Triggered checkpoint 6886 | -8/Garrison | Triggered checkpoint 6914 | -8/Garrison | Entered Factory 6915 | -7/Factory | Identified exit to Storage 6928 | -7/Factory | Identified exit to Lower Caves 7004 | -7/Factory | Reached level 17 7019 | -7/Factory | Upgraded with Utility slot (x1) 7052 | -7/Factory | High security lockdown imminent 7073 | -7/Factory | Manually triggered Chute Trap 7073 | -7/Factory | Sucked down chute 7073 | -7/Factory | Entered Waste 7074 | -7/Waste | Met a frightened Derelict 7075 | -7/Waste | Spotted C-40 Crusher 7077 | -7/Waste | Spotted C-40 Crusher 7081 | -7/Waste | Spotted C-40 Crusher 7102 | -7/Waste | Spotted C-40 Crusher 7102 | -7/Waste | Spotted C-40 Crusher 7107 | -7/Waste | Allies destroyed C-40 Crusher 7153 | -7/Waste | Destroyed C-40 Crusher 7169 | -7/Waste | Spotted C-40 Crusher 7180 | -7/Waste | Destroyed C-40 Crusher 7205 | -7/Waste | Destroyed C-40 Crusher 7218 | -7/Waste | Destroyed C-40 Crusher 7231 | -7/Waste | Destroyed C-40 Crusher 7305 | -7/Waste | Warlord forces began an assault 7356 | -7/Waste | Discovered new exit (range 14) 7403 | -7/Waste | Entered Factory 7403 | -7/Factory | Accompanied by 19 allies 7527 | -7/Factory | Identified exit to Garrison 7585 | -7/Factory | Garrison activated, responded to threat 7611 | -7/Factory | Discovered new exit (range 6) 7713 | -7/Factory | Garrison activated, responded to threat 7740 | -7/Factory | Reached level 18 7785 | -7/Factory | Build established: Wizard-Sprinter 7803 | -7/Factory | First assault squad dispatched 7814 | -7/Factory | Central database locked down 8013 | -7/Factory | Fabricated Adv. Power Amplifier (x1) 8056 | -7/Factory | Fabricated Adv. Surge Thruster (x2) 8090 | -7/Factory | Cargo convoy interrupted 8093 | -7/Factory | Core integrity fell below 50% 8101 | -7/Factory | Core integrity fell below 20% 8248 | -7/Factory | Fabricated Adv. Surge Thruster? 8353 | -7/Factory | Fabricated Imp. Weapon Cycler? 8559 | -7/Factory | System corruption reached 10% 8562 | -7/Factory | Discovered new exit (range 17) 8601 | -7/Factory | Identified exit to Factory 8900 | -7/Factory | Entered Garrison 8903 | -7/Garrison | Expanded RIF knowledge: Patrol Navigation 8917 | -7/Garrison | Garrison Relay disabled 8950 | -7/Garrison | Discovered exit to Factory (range 11) 8963 | -7/Garrison | Garrison Relay disabled 8966 | -7/Garrison | Triggered checkpoint 9324 | -7/Garrison | Triggered checkpoint 9328 | -7/Garrison | Destroyed by L-41 Fighter with Axe Last Messages --------------- 09294_ A-02 Transporter destroyed. 09314_ RIF reveals location of phase wall. 09314_ Triggered Stasis Trap. 09314_ A bubble of rippling energy engulfs the area. 09314_ Field strength at 92. 09314_ Field strength at 84. 09315_ Field strength at 76. 09316_ Field strength at 68. 09317_ Field strength at 60. 09318_ Field strength at 52. 09319_ Field strength at 40. 09320_ Field strength at 28. 09321_ Field strength at 16. 09322_ Field strength at 4. 09323_ Stasis field depleted. 09323_ Triggered Stasis Trap. 09323_ A bubble of rippling energy engulfs the area. 09323_ Field strength at 88. 09323_ Field strength at 76. 09324_ Beams of light sweep through the air. An alarm sounds. Map ----- +----------------------------------------------------+ | !!!### # #????# ## #??#!=#???# #???????????? | | ?????# ## ##????# ## #??#!!#???# #???????????? | | ?????# #?###?????# ## #??#!=#???# #???????????? | | ?????# #?????????# ## #??#!%#???# #???????????? | | ??####+########### ## #??#!%#???# #???????????? | | ??# ## #####*#???#++############# | | ??# ##+#####/##### *%+%!#???# | | ??# # #???# #???# !####???# | | ??# ## #???# #???##+##### =#??????# ############# | | ??# ## ##### #????# #???# #??????# #???????????? | | ### + #????# #???# #??????# #???????????? | | # ##########????# #???# #??????# #???????????? | | # #?????????????# #???# #??????# #???????????? | | # #?????????????# #???# #??????# #???????????? | | ### #?????????????# #???# #?l??b?# #???????????? | | ??# ###???????????# #??## ##""""## ##??????????? | | ??# #"#???????????# #### #??????????? | | ??# #???????????# + #??????????? | | ??# !"#???????????###### #??????????? | | ??# "#????????????????# ## ## #??????????? | | ??# #"#??????????????### ## ## #??????????? | | ??#####??????????????# "??????????? | | ?????????????????????# "??????????? | | ?????????????????????# "Y?????????? | | ?????????????????????# ll "??????????? | | ???????????????????????# @^## ## #??????????? | | ???????????????????????# ## ## #??????????? | | ???????????????????????+ ?????????? | | ???????????????????????+ ?????????? | | ???????????????????????# ????????? | | ???????????????????????# ##""""##++###?????????? | | ???????????????????????# #?ssss????????????????? | | ???????????????????????# #?????????????????????? | | ???????????????????????+ #?????????????????????? | | ???????????????????????# #?????????????????????? | | ???????????????????????# #?????????????????????? | | ???????????????????????# #?????????????????????? | | ???????????????????????# #?????????????????????? | | ??????????????????????? #?????????????????????? | | ??????????????????????? ^ #?????????????????????? | | ??????????????????????? ??????????????????????? | | ???????????????????????###+??????????????????????? | | ?????????????????????????????????????????????????? | | ?????????????????????????????????????????????????? | | ?????????????????????????????????????????????????? | | ?????????????????????????????????????????????????? | | ?????????????????????????????????????????????????? | | ?????????????????????????????????????????????????? | | ?????????????????????????????????????????????????? | | ?????????????????????????????????????????????????? | +----------------------------------------------------+ Best States ------------- Heat Dissipation 86 Energy Generation 33 Energy Capacity 250 Matter Stores 300 Matter Capacity 300 Sight Range 18 Terrain Scan Range 16 Terrain Scan Density 210 ECM Strength 2 Jamming Range 14 Cloak Strength 5 Power Amplification 30 Additional Mass Support 9 Resistance: TH 25 Propulsion Shielding 90 Weapon Cycling 20 Melee Speed Boost 20 Evasion (%) 75 Targeting Accuracy 8 Melee Accuracy 6 Target Analysis 5 Core Analysis 6 Armor Integrity Analysis 30 Kinecelleration 40 Force Boost 20 Offensive Hacking 47 Defensive Hacking 55 Item Schematics ----------------- Lrn. Tractor Beam | -8/Materials | Hacked Enh. Autogun | -8/Materials | Scanalyzed Prc. Beam Rifle | -8/Materials | Scanalyzed Hacking Suite | -8/Materials | Extracted Hpw. Shotgun | -8/Materials | Extracted Imp. Datajack | -8/Materials | Extracted Trap Scanner | -8/Materials | Extracted Com. Wheel | -8/Materials | Extracted Reaction Control System | -8/Materials | Extracted Shock Rifle | -8/Materials | Extracted Adv. Surge Thruster | -7/Factory | Scanalyzed Ion Burst Cannon | -7/Factory | Scanalyzed Mic. Nuclear Core | -7/Factory | Extracted Recoil Stabilizer | -7/Factory | Extracted Adv. Assault Cannon | -7/Factory | Extracted Lrn. Missile Launcher | -7/Factory | Hacked Recoil Nullifier | -7/Factory | Hacked Exp. Propulsion Shielding | -7/Factory | Scanalyzed Gravity Neutralizer | -7/Factory | Scanalyzed Imp. Weapon Cycler | -7/Factory | Scanalyzed System Restoration Module | -7/Factory | Hacked Robot Schematics ------------------ Y-54 Guardian | -7/Factory | Hacked R-06 Scavenger | -7/Factory | Hacked Y-45 Defender | -7/Factory | Hacked O-24 Administrator | -7/Factory | Hacked Fabricated ------------ Adv. Power Amplifier | x1 | -7/Factory | Preloaded Adv. Surge Thruster | x2 | -7/Factory Adv. Surge Thruster | x2 | -7/Factory Imp. Weapon Cycler | x2 | -7/Factory | Preloaded Alien Tech Used ----------------- None Achievements -------------- Ride The Lightning Challenges ------------ None RPGLIKE | -11 -10 -10 -10 -9 -8 -8 -8 -8 -7 -7 -7 -7 --------- Run | Jun Mat Min Exi Min Mat Gar Mat Gar Fac Was Fac Gar Levels Raised 17 | . 4 1 . 1 5 2 1 1 1 . 1 . XP Earned 29616 | 3000 6313 1357 169 1887 8057 2632 1810 753 1303 53 1952 330 XP Spent 28500 | . 7850 . . 3740 7820 2955 1400 1650 1400 . 1685 . Upgrades 54 | . 17 . . 5 15 5 2 4 1 . 5 . Propulsion Slot 4 | . 2 . . 1 . 1 . . . . . . Utility Slot 4 | . 2 . . . 1 . . . 1 . . . Weapon Slot 2 | . 1 . . . . . 1 . . . . . Core Integrity 4 | . . . . . . 1 . . . . 3 . Heat Dissipation 5 | . . . . . 4 1 . . . . . . Energy Generation 2 | . . . . . . 1 . . . . 1 . Mass Support 2 | . 1 . . . . . 1 . . . . . Inventory Capacity 3 | . 2 . . . . . . 1 . . . . Sight Range 2 | . 2 . . . . . . . . . . . Terrain Scan Density 2 | . . . . 2 . . . . . . . . Ranged Accuracy 8 | . . . . . 7 1 . . . . . . Melee Accuracy 3 | . . . . . . . . 3 . . . . Hack Attack % 5 | . 4 . . . . . . . . . 1 . Hack Defense % 5 | . 3 . . 2 . . . . . . . . KI Damage % 3 | . . . . . 3 . . . . . . . Protomatter Created 4384 | . 161 74 . 51 1042 811 1322 526 87 179 131 . Integrity Restored 7737 | . 179 222 . 350 1875 1683 1963 682 82 221 480 . Core 5805 | . 161 222 . 222 1585 1218 1447 477 74 . 399 . Parts 1932 | . 18 . . 128 290 465 516 205 8 221 81 . Protomatter Decayed 2175 | . . . . 16 439 240 647 268 98 79 388 . Game ------ Seed AutogunRocketShield Manual? 0 Play Time 03:00:04 Cumulative 504.8 hours Start 2023.03.26 @ 13:17:43 End 2023.03.26 @ 22:51:33 Sessions 1 Manual Loads 0 Difficulty Rogue Special Mode Winter2019/RPGLIKE Game No. 536 Rogue 536 Adventurer 0 Explorer 0 Win Type - Total 1 Types 1/0/0/0/0/0/0/0/0 Lore% 61 Gallery% 82 Achievement% 65 Wizard Run 0 Options --------- ASCII 0 Keyboard 0 Movement Mouse Keybinds 0 Fullscreen 2 Font 24/Smallcaps Map View 76x50 Tactical HUD 1 Map Filters NONE Filters NONE Steam 1 RUN: f868fde0-a64f-4441-ae45-df589a9c6b7e